bitfinex/quotes_SOLUSD_20251201
["timestamp","ask_amount","ask_price","bid_price","bid_amount"]
[1764602741455,8.00713906,124.89,124.85,4.34]
[1764602741930,178.02475456,124.89,124.84,45.74724518]
[1764602742123,8.00640512,124.9,124.84,57.43693223]
[1764602742321,13.89481262,124.88,124.84,77.46256503]
[1764602742523,13.89481262,124.88,124.85,4.34]
[1764602742762,8.80994492,124.91,124.86,0.66]
[1764602742929,13.89481262,124.89,124.86,0.66]
[1764602743119,20.00741024,124.96,124.86,0.66]
[1764602743325,13.89481262,124.92,124.86,0.66]
[1764602743731,13.89481262,124.89,124.86,0.66]
[1764602743928,8.80994492,124.93,124.87,3.68]
[1764602744141,13.89481262,124.89,124.87,3.68]
[1764602744337,16.81470455,124.93,124.88,8.66768737]
[1764602744648,7.79458844,124.89,124.88,8.66768737]
[1764602744888,7.79458844,124.89,124.88,12.34768737]
[1764602745027,16.81470455,124.93,124.88,12.34768737]
[1764602745232,7.79458844,124.89,124.88,12.34768737]
[1764602745541,7.79458844,124.89,124.84,45.74724518]
[1764602745542,83.80994492,124.88,124.84,45.74724518]
[1764602745846,7.79458844,124.85,124.84,45.74724518]
[1764602746652,7.79458844,124.85,124.84,54.4174983]
[1764602746855,95.01908712,124.89,124.84,54.4174983]
[1764602746856,7.79458844,124.86,124.84,54.4174983]
[1764602747044,7.79458844,124.85,124.84,45.74724518]
[1764602747848,8.80994492,124.87,124.84,45.74724518]
[1764602748047,7.79458844,124.85,124.84,45.74724518]
[1764602748352,8.80994492,124.87,124.85,0.66]
[1764602748353,7.79458844,124.87,124.85,0.66]
[1764602748649,8.80994492,124.89,124.85,0.66]
[1764602748868,7.79458844,124.86,124.85,0.66]
[1764602749330,7.79458844,124.86,124.84,53.7574983]
[1764602749533,7.79458844,124.86,124.85,3.68]
[1764602750033,7.79458844,124.86,124.85,11.68945966]
[1764602750541,7.79458844,124.86,124.84,57.43727421]
[1764602750755,7.79458844,124.88,124.84,57.43727421]
[1764602750969,7.79458844,124.85,124.84,45.74724518]
[1764602751470,8.80994492,124.87,124.84,49.42724518]
[1764602751666,7.79458844,124.86,124.84,49.42724518]
[1764602751828,7.79458844,124.85,124.84,50.08724518]
[1764602752029,16.81707698,124.89,124.84,58.0974651]
[1764602752251,7.79458844,124.85,124.84,58.0974651]
[1764602752469,7.79458844,124.85,124.84,57.4374651]
[1764602752769,174.17708431,124.9,124.84,78.1230979]
[1764602752930,7.79458844,124.86,124.84,78.1230979]
[1764602753332,7.79458844,124.86,124.85,0.66]
[1764602753755,8.80994492,124.89,124.85,0.66]
[1764602753957,7.79458844,124.86,124.85,0.66]
[1764602754872,7.79458844,124.86,124.84,45.74724518]
[1764602754873,8.80994492,124.85,124.84,45.74724518]
[1764602755163,91.74669493,124.85,124.84,45.74724518]
[1764602755360,91.60453336,124.85,124.84,45.74724518]
[1764602755735,8.80994492,124.85,124.84,45.74724518]
[1764602755936,7.79458844,124.85,124.84,45.74724518]
[1764602756353,7.79458844,124.85,124.84,58.0974983]
[1764602756751,19.988864,124.89,124.84,58.0974983]
[1764602756957,7.79458844,124.85,124.84,58.0974983]
[1764602757449,7.79458844,124.85,124.84,50.08724518]
[1764602757651,16.60453336,124.85,124.84,45.74724518]
[1764602758174,24.61414489,124.85,124.84,45.74724518]
[1764602758384,99.75630646,124.85,124.84,45.74724518]
[1764602758959,123.72630646,124.85,124.84,45.74724518]
[1764602759270,99.75630646,124.85,124.84,45.74724518]
[1764602760260,99.75630646,124.85,124.81,4.97711139]
[1764602760261,25.26097049,124.82,124.81,4.97711139]
[1764602760458,25.26097049,124.82,124.8,46.50151515]
[1764602760459,83.80994492,124.81,124.8,46.50151515]
[1764602760768,75.0,124.79,124.77,47.05578512]
[1764602761082,16.308864,124.75,124.71,1.0]
[1764602761284,75.0,124.7,124.66,49.01859504]
[1764602761463,75.0,124.7,124.66,57.04041438]
[1764602761791,75.0,124.75,124.67,4.34]
[1764602761955,7.79458844,124.72,124.67,4.34]
[1764602762149,8.80994492,124.75,124.69,28.06961263]
[1764602762350,7.79458844,124.72,124.7,3.68]
[1764602762550,99.32434103,124.76,124.7,4.34]
[1764602762750,99.32434103,124.76,124.69,28.06961263]
[1764602762965,99.32434103,124.76,124.7,3.68]
[1764602763179,7.79458844,124.72,124.69,28.06961263]
[1764602763378,8.80994492,124.75,124.71,3.68]
[1764602763550,8.80994492,124.75,124.71,4.4]
[1764602763954,99.32434103,124.76,124.72,4.4]
[1764602764188,7.79458844,124.73,124.72,4.4]
[1764602764368,8.01669555,124.74,124.7,8.01902976]
[1764602764569,7.79458844,124.71,124.68,8.02003818]
[1764602764893,8.80994492,124.73,124.69,3.68]
[1764602765081,83.01669555,124.74,124.69,4.4]
[1764602765390,83.01669555,124.74,124.69,3.68]
[1764602765564,83.01669555,124.74,124.7,0.72]
[1764602765772,83.01669555,124.74,124.7,4.4]
[1764602765983,83.01669555,124.74,124.68,8.02003818]
[1764602766275,8.01658738,124.75,124.69,0.72]
[1764602766477,16.308864,124.76,124.69,0.72]
[1764602766661,7.79458844,124.75,124.7,7.79458844]
[1764602766867,7.79458844,124.76,124.71,12.19458844]
[1764602767073,7.79458844,124.77,124.72,7.79458844]
[1764602767262,7.79458844,124.77,124.72,0.72]
[1764602767461,8.01346261,124.79,124.73,0.72]
[1764602767658,7.79458844,124.78,124.74,3.68]
[1764602767880,8.01346261,124.79,124.74,3.68]
[1764602768081,8.01346261,124.79,124.75,0.72]
[1764602768381,7.79458844,124.77,124.75,8.73538971]
[1764602768683,7.79458844,124.77,124.76,0.72]
[1764602768867,7.79458844,124.77,124.73,8.01681479]
[1764602769065,7.79458844,124.74,124.73,12.41681479]
[1764602769578,7.79458844,124.76,124.73,12.41681479]
[1764602769782,103.04711915,124.79,124.74,0.72]
[1764602769783,7.79458844,124.75,124.74,0.72]
[1764602770486,8.80994492,124.74,124.69,3.68]
[1764602770783,7.79458844,124.71,124.69,4.4]
[1764602770984,7.79458844,124.71,124.7,0.72]
[1764602771395,7.79458844,124.71,124.69,3.68]
[1764602771689,8.80994492,124.77,124.7,4.4]
[1764602771893,16.82530949,124.77,124.7,4.4]
[1764602772065,8.80994492,124.78,124.71,8.51458844]
[1764602772262,8.80994492,124.78,124.72,8.01796023]
[1764602772464,8.80994492,124.81,124.75,7.79458844]
[1764602772796,7.79458844,124.82,124.77,7.79458844]
[1764602772979,86.68926398,124.86,124.79,7.79458844]
[1764602772980,7.79458844,124.83,124.79,7.79458844]
[1764602773171,7.79458844,124.85,124.8,11.47458844]
[1764602773371,7.79458844,124.85,124.81,0.72]
[1764602773568,7.79458844,124.85,124.81,8.51458844]
[1764602773772,7.79458844,124.87,124.82,7.79458844]
[1764602773991,7.79458844,124.85,124.82,0.72]
[1764602774301,7.79458844,124.83,124.79,0.72]
[1764602774499,75.0,124.89,124.81,3.68]
[1764602774670,7.79458844,124.87,124.83,7.79458844]
[1764602774867,3.68,124.93,124.84,7.79458844]
[1764602774868,7.79458844,124.89,124.84,7.79458844]
[1764602775095,7.79458844,124.89,124.85,3.68]
[1764602775294,7.79458844,124.88,124.86,0.72]
[1764602775499,75.0,124.91,124.86,0.72]
[1764602775980,82.79458844,124.87,124.82,3.68]
[1764602776181,75.0,124.87,124.82,4.4]
[1764602776493,75.0,124.91,124.84,7.79458844]
[1764602776686,161.47458844,124.95,124.86,7.79458844]
[1764602776909,7.79458844,124.91,124.87,3.68]
[1764602777208,75.0,124.95,124.87,12.19458844]
[1764602777384,7.79458844,124.93,124.88,8.51458844]
[1764602777892,7.79458844,124.93,124.89,0.72]
[1764602778265,7.79458844,124.93,124.9,8.00640512]
[1764602778472,75.0,124.92,124.86,0.72]
[1764602778872,7.79458844,124.89,124.86,0.72]
[1764602779094,7.79458844,124.87,124.82,28.04037814]
[1764602779314,75.0,124.9,124.83,4.4]
[1764602779315,7.79458844,124.85,124.83,4.4]
[1764602779478,166.308864,124.9,124.83,4.4]
[1764602779677,91.308864,124.9,124.84,0.72]
[1764602780089,8.80994492,124.91,124.84,0.72]
[1764602780276,7.79458844,124.88,124.85,8.00961153]
[1764602780594,7.79458844,124.89,124.85,28.03364036]
[1764602780803,7.79458844,124.88,124.86,0.72]
[1764602781198,7.79458844,124.89,124.86,0.72]
[1764602781387,7.79458844,124.89,124.87,3.68]
[1764602781706,7.79458844,124.89,124.86,0.72]
[1764602781895,7.79458844,124.88,124.86,4.4]
[1764602782430,8.00656585,124.9,124.86,12.40897004]
[1764602782431,7.79458844,124.87,124.86,12.40897004]
[1764602782610,8.00656585,124.9,124.86,12.40897004]
[1764602782766,7.79458844,124.87,124.86,12.40897004]
[1764602782971,7.79458844,124.87,124.86,8.72897004]
[1764602783172,7.79458844,124.88,124.86,12.40897004]
[1764602784094,7.79458844,124.87,124.83,0.72]
[1764602784281,7.79458844,124.84,124.83,0.72]
[1764602784971,82.79458844,124.88,124.83,0.72]
[1764602784972,75.0,124.88,124.83,8.73065871]
[1764602785173,82.79458844,124.88,124.83,12.41065871]
[1764602785373,82.79458844,124.88,124.84,0.72]
[1764602785573,7.79458844,124.85,124.84,0.72]
[1764602786697,7.79458844,124.86,124.84,4.4]
[1764602787295,7.79458844,124.86,124.85,0.72]
[1764602787492,28.02473514,124.89,124.85,0.72]
[1764602787690,7.79458844,124.88,124.85,0.72]
[1764602788198,7.79458844,124.86,124.84,11.68984497]
[1764602788383,7.79458844,124.85,124.81,0.7]
[1764602788593,7.79458844,124.83,124.81,3.68]
[1764602788895,7.79458844,124.82,124.81,3.68]
[1764602789098,7.79458844,124.82,124.81,4.38]
[1764602789313,7.79458844,124.83,124.81,4.38]
[1764602789479,7.79458844,124.83,124.81,12.39182657]
[1764602789678,8.00968607,124.85,124.82,0.7]
[1764602789997,7.79458844,124.83,124.82,0.7]
[1764602790196,83.00921109,124.86,124.82,0.7]
[1764602790406,16.308864,124.89,124.82,0.7]
[1764602790587,7.79458844,124.87,124.82,8.49458844]
[1764602790774,7.79458844,124.84,124.82,0.7]
[1764602790975,7.79458844,124.84,124.82,4.38]
[1764602791387,7.79458844,124.84,124.83,0.7]
[1764602791704,7.79458844,124.84,124.81,3.68]
[1764602792010,7.79458844,124.84,124.78,8.71382743]
[1764602792011,7.79458844,124.82,124.78,8.71382743]
[1764602792174,75.0,124.84,124.77,8.01474713]
[1764602792175,7.79458844,124.8,124.77,8.01474713]
[1764602792374,75.0,124.84,124.78,3.68]
[1764602792375,7.79458844,124.79,124.78,3.68]
[1764602792579,7.79458844,124.79,124.78,4.38]
[1764602792797,7.79458844,124.79,124.76,4.38]
[1764602792974,7.79458844,124.77,124.76,3.68]
[1764602793180,75.0,124.8,124.76,3.68]
[1764602793380,7.79458844,124.78,124.76,4.35]
[1764602793793,15.80880714,124.78,124.76,4.35]
[1764602794106,75.0,124.8,124.75,8.01597549]
[1764602794107,7.79458844,124.77,124.75,3.68]
[1764602794413,7.79458844,124.81,124.76,0.67]
[1764602794618,24.10345244,124.83,124.77,7.79458844]
[1764602794786,7.79458844,124.83,124.77,7.79458844]
[1764602794982,7.79458844,124.81,124.78,0.67]
[1764602795199,8.80994492,124.82,124.78,0.67]
[1764602795618,111.33510132,124.84,124.79,8.01346261]
[1764602795619,99.31936074,124.84,124.79,8.01346261]
[1764602795796,7.79458844,124.83,124.79,8.01346261]
[1764602796110,83.01049674,124.84,124.79,8.01346261]
[1764602796111,7.79458844,124.81,124.79,4.35]
[1764602796311,7.79458844,124.82,124.79,4.35]
[1764602796893,7.79458844,124.8,124.78,3.68]
[1764602797087,7.79458844,124.79,124.76,12.36520123]
[1764602797714,7.79458844,124.77,124.72,0.67]
[1764602797890,7.79458844,124.76,124.73,4.35]
[1764602798089,7.79458844,124.77,124.73,4.35]
[1764602798289,7.79458844,124.77,124.74,0.67]
[1764602798805,7.79458844,124.76,124.74,0.67]
[1764602799194,7.79458844,124.75,124.71,0.67]
[1764602799394,99.3243187,124.76,124.69,3.68]
[1764602799395,8.80994492,124.74,124.69,3.68]
[1764602799593,7.79458844,124.74,124.69,4.35]
[1764602799788,7.79458844,124.74,124.7,0.67]
[1764602799987,7.79458844,124.73,124.7,0.67]
[1764602800218,7.79458844,124.73,124.69,3.68]
[1764602800219,7.79458844,124.72,124.68,0.67]
[1764602800393,7.79458844,124.72,124.68,4.35]
[1764602800594,75.0,124.78,124.71,7.79458844]
[1764602800821,75.0,124.78,124.72,11.47458844]
[1764602800822,7.79458844,124.77,124.72,11.47458844]
[1764602801009,7.79458844,124.77,124.73,3.68]
[1764602801190,7.79458844,124.77,124.73,12.36669566]
[1764602801391,99.32323741,124.78,124.74,0.67]
[1764602801392,16.308864,124.78,124.74,0.67]
[1764602802415,24.61823697,124.79,124.75,8.01603206]
[1764602802617,90.80768404,124.8,124.75,8.01603206]
[1764602802912,158.01174536,124.82,124.76,0.67]
[1764602803105,75.0,124.84,124.77,3.66]
[1764602803305,15.80576498,124.83,124.77,11.45458844]
[1764602803510,15.80576498,124.83,124.78,0.67]
[1764602803919,8.01117654,124.83,124.78,0.67]
[1764602804108,7.79458844,124.82,124.78,4.35]
[1764602804413,21.98579643,124.83,124.79,8.68345165]
[1764602804615,88.97461989,124.8,124.74,23.70012567]
[1764602804821,13.97461989,124.78,124.74,24.37012567]
[1764602805024,13.97461989,124.79,124.75,0.67]
[1764602805206,75.0,124.8,124.75,0.67]
[1764602805409,30.28348389,124.81,124.75,42.70011222]
[1764602805606,8.80994492,124.78,124.71,28.06511104]
[1764602805804,13.97461989,124.76,124.73,0.67]
[1764602806214,13.97461989,124.76,124.73,8.68673034]
[1764602806401,13.97461989,124.76,124.74,0.67]
[1764602806911,13.97461989,124.75,124.73,8.01673034]
[1764602807119,13.97461989,124.74,124.73,8.01673034]
[1764602807319,13.97461989,124.74,124.71,8.68819265]
[1764602807513,13.97461989,124.74,124.71,11.69819265]
[1764602807714,13.97461989,124.74,124.71,12.36819265]
[1764602808212,28.0538634,124.76,124.72,0.67]
[1764602808417,8.01538954,124.76,124.72,0.67]
[1764602808716,21.99000943,124.76,124.72,0.67]
[1764602808925,13.97461989,124.75,124.72,0.67]
[1764602809422,8.01538954,124.76,124.72,0.67]
[1764602809423,21.99000943,124.76,124.72,0.67]
[1764602809996,21.99000943,124.76,124.73,3.68]
[1764602810204,30.28348389,124.77,124.73,3.68]
[1764602810398,13.97461989,124.78,124.74,0.67]
[1764602810815,24.3227692,124.79,124.74,0.67]
[1764602810816,13.97461989,124.79,124.74,0.67]
[1764602811028,13.97461989,124.78,124.74,0.67]
[1764602811408,13.97461989,124.77,124.74,0.67]
[1764602811610,13.97461989,124.76,124.74,0.67]
[1764602812108,13.97461989,124.76,124.74,8.68656045]
[1764602812308,13.97461989,124.77,124.74,0.67]
[1764602812614,13.97461989,124.77,124.75,0.67]
[1764602812822,83.01287828,124.8,124.75,0.67]
[1764602813020,13.97461989,124.77,124.75,0.67]
[1764602813219,75.0,124.78,124.75,0.67]
[1764602813443,83.01287828,124.8,124.75,0.67]
[1764602813607,13.97461989,124.76,124.75,3.66]
[1764602813807,13.97461989,124.76,124.74,3.66]
[1764602814103,13.97461989,124.76,124.74,11.67667468]
[1764602814308,8.80994492,124.8,124.74,4.33]
[1764602814512,13.97461989,124.77,124.74,12.34656499]
[1764602814937,13.97461989,124.76,124.75,0.67]
[1764602815127,8.80994492,124.8,124.75,0.67]
[1764602815726,13.97461989,124.77,124.75,0.67]
[1764602815915,13.97461989,124.78,124.75,0.67]
[1764602816116,13.97461989,124.79,124.76,8.01538954]
[1764602816520,13.97461989,124.81,124.77,0.67]
[1764602816838,13.97461989,124.8,124.78,3.66]
[1764602817009,13.97461989,124.79,124.78,3.66]
[1764602817208,13.97461989,124.79,124.76,8.01538954]
[1764602817417,13.97461989,124.8,124.78,3.66]
[1764602817824,13.97461989,124.8,124.78,4.33]
[1764602818227,75.0,124.83,124.79,0.67]
[1764602818406,13.97461989,124.8,124.79,0.67]
[1764602818835,150.0,124.87,124.79,0.67]
[1764602819039,13.97461989,124.84,124.79,0.67]
[1764602819343,13.97461989,124.83,124.79,0.67]
[1764602819511,13.97461989,124.82,124.8,3.66]
[1764602819708,8.80994492,124.82,124.79,3.66]
[1764602819922,75.0,124.83,124.79,4.33]
[1764602820125,75.0,124.83,124.79,3.66]
[1764602820317,95.02433798,124.85,124.79,11.6730783]
[1764602820523,13.97461989,124.8,124.77,28.050743]
[1764602820823,13.97461989,124.78,124.75,0.67]
[1764602821132,13.97461989,124.77,124.75,0.67]
[1764602821321,13.97461989,124.76,124.75,0.67]
[1764602821709,13.97461989,124.76,124.75,8.68603206]
[1764602821924,13.97461989,124.77,124.75,8.68603206]
[1764602822130,13.97461989,124.76,124.73,28.05845935]
[1764602822429,75.0,124.78,124.73,8.01675082]
[1764602822430,8.80994492,124.77,124.73,8.01675082]
[1764602822734,13.97461989,124.74,124.73,8.68675082]
[1764602823431,13.97461989,124.74,124.73,12.34675082]
[1764602823907,36.34588703,124.77,124.71,8.01801842]
[1764602824114,13.97461989,124.73,124.72,3.66]
[1764602824420,75.0,124.79,124.72,18.33461989]
[1764602824421,13.97461989,124.79,124.72,18.33461989]
[1764602824621,13.97461989,124.77,124.73,0.7]
[1764602824833,13.97461989,124.76,124.74,3.66]
[1764602825011,13.97461989,124.78,124.74,3.66]
[1764602825211,83.01336954,124.8,124.75,8.71562671]
[1764602825419,13.97461989,124.79,124.75,8.71562671]
[1764602825624,13.97461989,124.79,124.76,0.7]
[1764602826119,75.0,124.85,124.76,14.67461989]
[1764602826636,75.0,124.86,124.78,13.97461989]
[1764602826637,8.0095964,124.86,124.78,13.97461989]
[1764602826937,8.0095964,124.86,124.79,3.66]
[1764602826938,13.97461989,124.84,124.79,3.66]
[1764602827133,13.97461989,124.84,124.79,4.36]
[1764602827318,16.81827358,124.87,124.81,8.01217851]
[1764602827643,13.97461989,124.85,124.81,28.04262478]
[1764602827820,13.97461989,124.86,124.82,0.7]
[1764602828024,13.97461989,124.87,124.83,3.66]
[1764602828339,13.97461989,124.86,124.83,3.66]
[1764602828633,13.97461989,124.87,124.84,0.7]
[1764602828806,13.97461989,124.88,124.84,0.7]
[1764602829237,13.97461989,124.87,124.84,0.7]
[1764602829423,8.00707819,124.89,124.85,8.00961153]
[1764602829635,0.2,124.9,124.85,28.03364036]
[1764602829831,0.2,124.9,124.87,13.97461989]
[1764602830036,0.2,124.92,124.88,3.66]
[1764602830215,14.17461989,124.92,124.88,0.7]
[1764602830428,13.97461989,124.91,124.89,0.7]
[1764602830717,14.17461989,124.92,124.9,3.66]
[1764602831233,0.2,124.92,124.88,4.36]
[1764602831433,13.97461989,124.91,124.89,0.7]
[1764602831626,13.97461989,124.9,124.88,12.3674453]
[1764602832030,13.97461989,124.91,124.89,0.7]
[1764602832425,0.2,124.92,124.89,0.7]
[1764602833436,0.2,124.92,124.9,8.00640512]
[1764602833637,0.2,124.92,124.91,3.66]
[1764602833934,13.97461989,124.94,124.91,4.36]
[1764602834114,13.97461989,124.95,124.92,0.7]
[1764602834836,8.80994492,124.96,124.9,0.7]
[1764602835033,8.80994492,124.96,124.91,3.66]
[1764602835232,13.97461989,124.92,124.91,3.66]
[1764602835538,13.97461989,124.92,124.89,8.00643745]
[1764602835839,8.00498159,124.93,124.9,3.66]
[1764602836237,8.00498159,124.93,124.88,0.7]
[1764602836238,83.40498159,124.93,124.88,3.66]
[1764602836442,83.00498159,124.93,124.88,4.36]
[1764602836824,13.97461989,124.9,124.88,4.36]
[1764602837024,13.97461989,124.91,124.89,0.7]
[1764602837236,13.97461989,124.9,124.88,3.66]
[1764602837637,13.97461989,124.9,124.89,8.7070462]
[1764602838028,22.3810858,124.9,124.84,0.7]
[1764602838224,13.97461989,124.85,124.84,0.7]
[1764602838421,13.97461989,124.86,124.84,4.36]
[1764602838626,13.97461989,124.85,124.84,0.7]
[1764602838927,13.97461989,124.85,124.82,3.66]
[1764602839248,13.97461989,124.85,124.83,0.7]
[1764602839621,13.97461989,124.86,124.84,8.01025312]
[1764602839827,175.11880892,124.9,124.84,28.03588592]
[1764602839828,13.97461989,124.87,124.84,28.03588592]
[1764602840126,13.97461989,124.86,124.84,0.7]
[1764602840438,8.80994492,124.89,124.85,3.66]
[1764602840634,13.97461989,124.86,124.85,3.66]
[1764602841448,13.97461989,124.86,124.85,8.00961153]
[1764602842725,13.97461989,124.86,124.84,8.01025312]
[1764602842935,83.40776423,124.88,124.84,8.01025312]
[1764602842936,13.97461989,124.85,124.84,8.01025312]
[1764602844152,16.81699776,124.89,124.84,8.71025312]
[1764602844447,13.97461989,124.87,124.84,8.71025312]
[1764602844948,13.97461989,124.85,124.84,8.71025312]
[1764602845243,13.97461989,124.85,124.84,11.67025312]
[1764602845449,13.97461989,124.85,124.84,12.37025312]
[1764602846041,13.97461989,124.85,124.78,0.7]
[1764602846352,8.80994492,124.86,124.79,3.66]
[1764602846531,13.97461989,124.85,124.8,0.7]
[1764602846731,8.80994492,124.88,124.8,0.7]
[1764602846940,13.97461989,124.84,124.8,0.7]
[1764602847145,13.97461989,124.85,124.81,28.04262478]
[1764602847331,13.97461989,124.86,124.81,28.04262478]
[1764602847533,8.00713134,124.89,124.82,0.7]
[1764602847843,13.97461989,124.87,124.83,3.66]
[1764602848247,13.97461989,124.86,124.84,0.69]
[1764602848437,13.97461989,124.86,124.85,8.00961153]
[1764602848633,8.00713134,124.89,124.85,8.00961153]
[1764602848839,13.97461989,124.87,124.85,8.00961153]
[1764602849050,13.97461989,124.89,124.86,0.69]
[1764602849251,8.40509959,124.93,124.86,4.35]
[1764602849449,13.97461989,124.89,124.87,3.66]
[1764602849633,13.97461989,124.9,124.87,3.66]
[1764602849827,13.97461989,124.91,124.87,4.35]
[1764602850032,16.81504451,124.93,124.87,4.35]
[1764602850033,13.97461989,124.9,124.87,4.35]
[1764602850647,13.97461989,124.9,124.88,8.00768737]
[1764602851055,13.97461989,124.9,124.88,8.69768737]
[1764602851229,13.97461989,124.92,124.89,0.69]
[1764602851426,25.11880892,124.95,124.9,3.64]
[1764602851661,13.97461989,124.93,124.9,4.33]
[1764602851957,25.11880892,124.95,124.91,0.69]
[1764602851958,13.97461989,124.95,124.91,0.69]
[1764602852271,13.97461989,124.93,124.9,0.69]
[1764602852432,8.00209182,124.97,124.91,4.33]
[1764602852433,13.97461989,124.94,124.91,4.33]
[1764602852734,175.51880892,124.98,124.92,28.01793146]
[1764602852735,13.97461989,124.96,124.92,28.01793146]
[1764602853133,13.97461989,124.96,124.93,0.67]
[1764602853335,13.97461989,124.96,124.94,3.64]
[1764602854149,13.97461989,124.99,124.95,0.67]
[1764602854353,0.2,125.0,124.95,0.67]
[1764602854554,0.2,125.0,124.99,8.00064005]
[1764602854738,0.2,125.0,124.99,11.64064005]
[1764602855053,0.2,125.0,124.99,12.31064005]
[1764602856474,0.2,125.0,124.99,4.31]
[1764602856638,0.2,125.0,124.99,12.31064005]
[1764602856954,0.2,125.0,124.99,4.31]
[1764602857149,0.2,125.0,124.99,12.31064005]
[1764602857354,0.2,125.0,124.99,26.28525994]
[1764602857661,14.17461989,125.05,124.99,46.28686006]
[1764602857860,14.17461989,125.05,125.0,0.67]
[1764602858230,13.97461989,125.04,125.0,0.67]
[1764602858435,13.97461989,125.03,125.01,3.64]
[1764602858636,13.97461989,125.04,125.01,3.64]
[1764602858854,13.97461989,125.04,125.01,32.3074977]
[1764602859062,13.97461989,125.03,125.01,3.64]
[1764602859236,0.4,125.03,125.01,3.64]
[1764602859437,13.97461989,125.03,125.01,3.64]
[1764602860240,8.59702435,125.05,124.99,28.67202184]
[1764602860241,13.97461989,125.02,124.99,28.67202184]
[1764602860447,13.97461989,125.03,125.0,3.64]
[1764602860832,13.97461989,125.03,125.01,7.99936005]
[1764602861832,0.6,125.05,125.02,0.67]
[1764602861833,0.2,125.05,125.02,0.67]
[1764602862062,14.17461989,125.05,125.03,3.64]
[1764602862464,0.2,125.05,125.03,3.64]
[1764602862643,14.37461989,125.04,125.01,7.99936005]
[1764602862846,0.2,125.05,125.01,11.63936005]
[1764602862847,13.97461989,125.02,125.01,11.63936005]
[1764602863947,13.97461989,125.02,125.01,7.99936005]
[1764602864265,13.97461989,125.02,125.01,11.63936005]
[1764602864561,13.97461989,125.02,124.97,8.00148063]
[1764602864562,15.95843772,125.02,124.97,8.00148063]
[1764602864863,7.77921886,124.98,124.97,8.00148063]
[1764602865061,7.77921886,124.98,124.94,60.69608821]
[1764602865062,7.77921886,124.98,124.96,3.64]
[1764602865251,7.77921886,124.97,124.96,3.64]
[1764602865760,8.17921886,124.97,124.93,11.64402719]
[1764602865963,8.17921886,124.97,124.86,42.0437054]
[1764602865964,7.77921886,124.94,124.88,8.00768737]
[1764602866154,150.0,124.92,124.86,8.00847524]
[1764602866362,8.80994492,124.91,124.86,8.00847524]
[1764602866665,7.77921886,124.87,124.85,11.64906621]
[1764602866969,7.77921886,124.86,124.85,11.64906621]
[1764602867386,7.77921886,124.86,124.85,3.64]
[1764602868644,0.4,124.89,124.85,3.64]
[1764602868858,7.77921886,124.86,124.81,8.01217851]
[1764602869074,7.77921886,124.83,124.82,3.64]
[1764602869485,7.77921886,124.85,124.82,4.31]
[1764602869992,24.31754554,124.87,124.83,0.67]
[1764602869993,8.00868154,124.87,124.83,0.67]
[1764602870160,16.308864,124.88,124.83,0.67]
[1764602870359,24.08808286,124.88,124.83,0.67]
[1764602870586,75.4,124.93,124.83,0.67]
[1764602870753,75.4,124.93,124.84,28.03588592]
[1764602870960,7.77921886,124.88,124.84,28.03588592]
[1764602871180,0.4,124.92,124.85,0.67]
[1764602871357,7.77921886,124.9,124.86,3.64]
[1764602871553,7.77921886,124.89,124.86,3.64]
[1764602871753,7.77921886,124.92,124.87,0.67]
[1764602872184,7.77921886,124.91,124.87,0.67]
[1764602872521,17.2137993,124.94,124.87,0.67]
[1764602872656,7.77921886,124.9,124.88,3.64]
[1764602872852,75.4,124.93,124.84,0.67]
[1764602873063,75.4,124.93,124.79,1.99999999]
[1764602873064,7.77921886,124.88,124.85,0.67]
[1764602873258,7.77921886,124.87,124.86,3.5]
[1764602873472,7.77921886,124.87,124.82,0.67]
[1764602873674,7.77921886,124.85,124.82,0.67]
[1764602873857,7.77921886,124.85,124.83,3.64]
[1764602874056,7.77921886,124.85,124.82,0.67]
[1764602874385,7.77921886,124.87,124.83,3.64]
[1764602874687,83.95210649,124.91,124.83,3.64]
[1764602874688,7.77921886,124.88,124.83,3.64]